bitfinex/quotes_BTCUSD_20250814
["timestamp","ask_amount","ask_price","bid_price","bid_amount"]
[1755167888218,1.10647702,121510.0,121500.0,0.003]
[1755167888434,1.13116102,121510.0,121500.0,0.1284]
[1755167889025,1.13116102,121510.0,121500.0,0.003]
[1755167889237,0.64734237,121510.0,121500.0,0.1286954]
[1755167889389,0.64734237,121510.0,121500.0,0.0032554]
[1755167889390,1.13116102,121510.0,121500.0,0.0032554]
[1755167889596,0.17716905,121500.0,121490.0,1e-08]
[1755167889842,0.5046226,121490.0,121480.0,0.20136]
[1755167890083,0.99360125,121490.0,121480.0,0.20136]
[1755167890536,1.01828925,121490.0,121480.0,0.20136]
[1755167890958,1.01828925,121490.0,121480.0,0.3268]
[1755167891377,1.03084925,121490.0,121480.0,0.20136]
[1755167891601,1.03084925,121490.0,121480.0,0.3268]
[1755167891602,1.11333368,121490.0,121480.0,0.3268]
[1755167892003,1.11333368,121490.0,121480.0,0.20136]
[1755167892206,0.51719615,121480.0,121470.0,0.004]
[1755167892433,0.52235615,121480.0,121470.0,0.12944]
[1755167892633,1.0061748,121480.0,121470.0,0.12944]
[1755167892838,1.08865923,121480.0,121470.0,0.12944]
[1755167893078,1.0061748,121480.0,121470.0,0.12944]
[1755167893535,1.0066695,121480.0,121470.0,0.12944]
[1755167893728,1.0066695,121480.0,121470.0,0.004]
[1755167893961,1.0086695,121480.0,121470.0,0.004]
[1755167894176,1.0086695,121480.0,121470.0,0.12944]
[1755167894382,1.07278029,121480.0,121470.0,0.12944]
[1755167895011,1.07278029,121480.0,121470.0,0.004]
[1755167895213,1.07278029,121480.0,121470.0,0.1294]
[1755167895838,1.09747129,121480.0,121470.0,0.1294]
[1755167896042,1.09747129,121480.0,121470.0,0.004]
[1755167896342,1.09747129,121480.0,121470.0,0.1294]
[1755167896541,1.09747129,121480.0,121470.0,0.004]
[1755167896736,1.09747129,121480.0,121470.0,0.1294]
[1755167897190,1.0333605,121480.0,121470.0,0.1294]
[1755167897401,1.0333605,121480.0,121470.0,0.13141]
[1755167897609,0.54954185,121480.0,121470.0,0.00601]
[1755167897814,0.54954185,121480.0,121470.0,0.13145]
[1755167898031,1.0333605,121480.0,121470.0,0.13145]
[1755167898237,1.0301605,121480.0,121470.0,0.13145]
[1755167898495,1.11264493,121480.0,121470.0,0.13145]
[1755167898979,1.11584493,121480.0,121470.0,0.13145]
[1755167900711,1.11584493,121480.0,121470.0,0.13245]
[1755167901972,1.11584493,121480.0,121470.0,0.1304]
[1755167903337,1.11584493,121480.0,121470.0,0.005]
[1755167903543,1.0301605,121480.0,121470.0,0.00701]
[1755167903749,0.54634185,121480.0,121470.0,0.13241]
[1755167904008,1.0301605,121480.0,121470.0,0.13563]
[1755167905368,1.0301605,121480.0,121470.0,0.13241]
[1755167906201,1.0333605,121480.0,121470.0,0.13241]
[1755167906532,1.11584493,121480.0,121470.0,0.13241]
[1755167906945,1.11584493,121480.0,121470.0,0.1304]
[1755167907637,0.63202628,121480.0,121470.0,0.1304]
[1755167907878,1.11584493,121480.0,121470.0,0.1304]
[1755167908059,1.11584493,121480.0,121470.0,0.13032]
[1755167909844,1.11484493,121480.0,121470.0,0.12932]
[1755167910245,0.63102628,121480.0,121470.0,0.12932]
[1755167910452,1.0323605,121480.0,121470.0,0.004]
[1755167910665,1.0323605,121480.0,121470.0,0.12932]
[1755167910865,0.54854185,121480.0,121470.0,0.12932]
[1755167911073,1.0323605,121480.0,121470.0,0.00601]
[1755167911315,1.0323605,121480.0,121470.0,0.13133]
[1755167911517,0.54854185,121480.0,121470.0,0.13133]
[1755167911722,1.0323605,121480.0,121470.0,0.13133]
[1755167912129,1.05525375,121480.0,121470.0,0.13133]
[1755167912332,1.05525375,121480.0,121470.0,0.13169]
[1755167913430,1.05525375,121480.0,121470.0,0.12968]
[1755167917573,1.05525375,121480.0,121470.0,0.004]
[1755167917782,1.05525375,121480.0,121470.0,0.12968]
[1755167917985,1.05525375,121480.0,121470.0,0.004]
[1755167918188,1.05525375,121480.0,121470.0,0.12964]
[1755167918399,1.05525375,121480.0,121470.0,0.004]
[1755167918612,1.05525375,121480.0,121470.0,0.12964]
[1755167918840,1.05525375,121480.0,121470.0,0.004]
[1755167919053,1.05525375,121480.0,121470.0,0.12964]
[1755167919272,0.5714351,121480.0,121470.0,0.12964]
[1755167919497,0.1646497,121470.0,121460.0,0.004]
[1755167919712,0.66299835,121470.0,121460.0,0.12988]
[1755167919923,0.72566429,121470.0,121460.0,0.12988]
[1755167920189,0.24184564,121470.0,121460.0,0.12988]
[1755167920402,0.30341544,121470.0,121460.0,0.12988]
[1755167920607,0.78723409,121470.0,121460.0,0.004]
[1755167920818,0.78723409,121470.0,121460.0,0.13008]
[1755167921538,0.78723409,121470.0,121460.0,0.004]
[1755167921539,1.12723409,121470.0,121460.0,0.004]
[1755167921756,1.14255654,121470.0,121460.0,0.13292]
[1755167921969,1.14255654,121470.0,121460.0,0.004]
[1755167922193,1.14255654,121470.0,121460.0,0.13296]
[1755167922408,1.14255654,121470.0,121460.0,0.004]
[1755167922623,0.17722326,121460.0,121450.0,0.24301728]
[1755167922836,0.74549634,121460.0,121450.0,0.24301728]
[1755167923044,0.26464769,121460.0,121450.0,0.24301728]
[1755167923260,0.76378299,121460.0,121450.0,0.24301728]
[1755167923470,1.02968299,121460.0,121450.0,0.24301728]
[1755167923901,1.037624,121460.0,121450.0,0.37237728]
[1755167924383,1.038624,121460.0,121450.0,0.37237728]
[1755167924593,1.039624,121460.0,121450.0,0.37237728]
[1755167927196,1.039624,121460.0,121450.0,0.37277728]
[1755167928205,0.773724,121460.0,121450.0,0.24301728]
[1755167928411,0.51723682,121450.0,121440.0,1.2104]
[1755167928584,1.10082655,121450.0,121440.0,1.34008]
[1755167928816,1.10379655,121450.0,121440.0,1.34008]
[1755167929152,0.6446749,121450.0,121440.0,1.34008]
[1755167929360,1.12849355,121450.0,121440.0,1.34008]
[1755167929975,1.12849355,121450.0,121440.0,1.2104]
[1755167930176,1.12849355,121450.0,121440.0,1.34236]
[1755167931300,1.04600912,121450.0,121440.0,1.34236]
[1755167931510,1.04303912,121450.0,121440.0,1.34236]
[1755167932943,0.55922047,121450.0,121440.0,1.34236]
[1755167933183,1.04303912,121450.0,121440.0,1.34236]
[1755167933406,1.04303912,121450.0,121440.0,1.34228]
[1755167933629,0.6417049,121450.0,121440.0,1.34228]
[1755167933861,1.12552355,121450.0,121440.0,1.34228]
[1755167936233,1.21198355,121450.0,121440.0,1.34228]
[1755167936440,1.12552355,121450.0,121440.0,1.34228]
[1755167936866,1.12547962,121450.0,121440.0,1.34228]
[1755167937290,1.12547962,121450.0,121440.0,1.34522]
[1755167938154,0.64166097,121450.0,121440.0,1.34522]
[1755167938363,1.12547962,121450.0,121440.0,1.34522]
[1755167939675,1.04102519,121450.0,121440.0,1.34522]
[1755167939884,0.55720654,121450.0,121440.0,1.34522]
[1755167940099,0.55720654,121450.0,121440.0,1.34558]
[1755167940313,0.55720654,121450.0,121440.0,1.29818325]
[1755167940527,0.54464654,121450.0,121440.0,1.42830325]
[1755167940750,0.55720654,121450.0,121440.0,1.29818325]
[1755167940962,0.21720654,121450.0,121440.0,1.42834325]
[1755167941591,0.19250954,121450.0,121440.0,1.42834325]
[1755167944615,0.19255633,121450.0,121440.0,1.29818325]
[1755167944845,0.19255633,121450.0,121440.0,1.42826325]
[1755167946090,0.17723682,121450.0,121440.0,1.42826325]
[1755167946309,0.19256911,121450.0,121440.0,1.42826325]
[1755167948309,0.19256911,121450.0,121440.0,1.29818325]
[1755167948514,0.19256911,121450.0,121440.0,1.42826325]
[1755167949865,0.67835776,121450.0,121440.0,1.29524325]
[1755167950083,0.67835776,121450.0,121440.0,1.42552325]
[1755167950508,0.67836731,121450.0,121440.0,1.42552325]
[1755167951964,0.68152731,121450.0,121440.0,1.42340325]
[1755167952166,0.69803393,121450.0,121440.0,1.2104]
[1755167952373,0.69803393,121450.0,121440.0,1.34068]
[1755167952580,0.69803393,121450.0,121440.0,1.2104]
[1755167952581,1.03803393,121450.0,121440.0,1.2104]
[1755167952789,1.03803393,121450.0,121440.0,1.34068]
[1755167953006,1.06272993,121450.0,121440.0,1.34068]
[1755167953843,1.06272993,121450.0,121440.0,1.2104]
[1755167954065,1.06272993,121450.0,121440.0,1.34068]
[1755167955365,1.06272993,121450.0,121440.0,1.34064]
[1755167956017,1.06273057,121450.0,121440.0,1.34064]
[1755167957467,1.06273057,121450.0,121440.0,1.2104]
[1755167957663,1.06273057,121450.0,121440.0,1.34052]
[1755167958343,1.06273057,121450.0,121440.0,1.2104]
[1755167958559,1.06273057,121450.0,121440.0,1.34052]
[1755167959394,1.06273057,121450.0,121440.0,1.2104]
[1755167959600,1.06273057,121450.0,121440.0,1.3406]
[1755167960476,0.57891192,121450.0,121440.0,1.3406]
[1755167960707,1.06273057,121450.0,121440.0,1.2104]
[1755167960903,1.06273057,121450.0,121440.0,1.34052]
[1755167961427,1.06273057,121450.0,121440.0,1.34068]
[1755167962112,1.04122395,121450.0,121440.0,1.2104]
[1755167962338,1.04122395,121450.0,121440.0,1.34076]
[1755167963655,1.5250426,121450.0,121440.0,0.90001121]
[1755167963862,1.54660299,121450.0,121440.0,0.73188771]
[1755167964067,1.06278434,121450.0,121440.0,0.73188771]
[1755167964276,1.62908742,121450.0,121440.0,0.73188771]
[1755167965002,0.66245012,121450.0,121440.0,0.22864672]
[1755167965215,1.63008742,121450.0,121440.0,0.23593381]
[1755167965657,1.63108742,121450.0,121440.0,0.23593381]
[1755167966306,0.16469038,121440.0,121430.0,0.0034]
[1755167966514,0.75023842,121440.0,121430.0,0.0034]
[1755167966716,0.77179881,121440.0,121430.0,0.13384]
[1755167967593,0.7969942,121440.0,121430.0,0.13384]
[1755167969568,0.2621,121420.0,121410.0,0.20089]
[1755167969771,0.91219111,121420.0,121410.0,0.20299]
[1755167970400,0.43461966,121420.0,121410.0,0.20299]
[1755167970836,0.43461966,121420.0,121410.0,0.33647]
[1755167972540,0.91999327,121420.0,121410.0,0.33647]
[1755167972980,0.94332329,121420.0,121410.0,0.33647]
[1755167973436,0.91999327,121420.0,121410.0,0.33647]
[1755167974481,0.95778897,121420.0,121410.0,0.33647]
[1755167975113,0.47241536,121420.0,121410.0,0.33647]
[1755167975530,0.21031536,121420.0,121410.0,0.33647]
[1755167976969,0.2100859,121420.0,121410.0,0.33647]
[1755167977804,0.68765735,121420.0,121410.0,0.33647]
[1755167978088,0.68765735,121420.0,121410.0,0.20599]
[1755167978302,0.20228374,121420.0,121410.0,0.33635]
[1755167980520,0.21484374,121420.0,121410.0,0.41899325]
[1755167980990,0.21484374,121420.0,121410.0,0.58372432]
[1755167980991,0.0377957,121420.0,121410.0,0.58372432]
[1755167981263,0.01256,121420.0,121410.0,0.60117334]
[1755167981513,0.1772775,121420.0,121410.0,0.47089334]
[1755167981737,0.1772775,121420.0,121410.0,0.60113334]
[1755167981964,0.1772775,121420.0,121410.0,0.43640227]
[1755167983718,0.1772775,121420.0,121410.0,0.41895325]
[1755167983932,0.21468104,121420.0,121410.0,0.28871325]
[1755167984140,0.21681104,121420.0,121410.0,0.41907325]
[1755167984345,0.21681104,121420.0,121410.0,0.28570325]
[1755167984520,0.70218465,121420.0,121410.0,0.41606325]
[1755167985165,0.21681104,121420.0,121410.0,0.41606325]
[1755167985589,0.78773908,121420.0,121410.0,0.20088]
[1755167985793,0.78773908,121420.0,121410.0,0.3312]
[1755167986338,0.78773908,121420.0,121410.0,0.20088]
[1755167986538,0.30236547,121420.0,121410.0,0.3333]
[1755167986754,0.21988104,121420.0,121410.0,0.3333]
[1755167987198,0.21681104,121420.0,121410.0,0.20298]
[1755167987406,0.21681104,121420.0,121410.0,0.33623]
[1755167987783,0.70218465,121420.0,121410.0,0.20595]
[1755167988375,0.70218465,121420.0,121410.0,0.33611]
[1755167988551,0.70218465,121420.0,121410.0,0.33314]
[1755167989010,0.78773908,121420.0,121410.0,0.33116]
[1755167990557,0.70525465,121420.0,121410.0,0.33116]
[1755167990735,0.70525465,121420.0,121410.0,0.33326]
[1755167990964,0.70218465,121420.0,121410.0,0.33326]
[1755167991762,0.70525465,121420.0,121410.0,0.33116]
[1755167993275,0.70525465,121420.0,121410.0,0.33096]
[1755167993616,1.12773908,121420.0,121410.0,0.33096]
[1755167993842,1.12773908,121420.0,121410.0,0.20088]
[1755167994033,1.12773908,121420.0,121410.0,0.33092]
[1755167994371,1.12773908,121420.0,121410.0,0.20088]
[1755167994556,1.15244108,121420.0,121410.0,0.32788]
[1755167995169,1.17588108,121420.0,121410.0,0.19788]
[1755167995372,1.19744894,121420.0,121410.0,0.32784]
[1755168000089,0.51729107,121410.0,121400.0,0.00096847]
[1755168000272,0.51729107,121410.0,121400.0,0.13080847]
[1755168000273,1.09034911,121410.0,121400.0,0.13080847]
[1755168000492,1.09034911,121410.0,121400.0,0.00096847]
[1755168000714,1.09034911,121410.0,121400.0,0.13080847]
[1755168000921,1.03068254,121410.0,121400.0,0.00096847]
[1755168001171,1.00786468,121410.0,121400.0,0.13080847]
[1755168001297,1.00786468,121410.0,121400.0,0.13180847]
[1755168001493,1.00786468,121410.0,121400.0,0.13080847]
[1755168002838,0.52249107,121410.0,121400.0,0.13080847]
[1755168003040,1.00886468,121410.0,121400.0,0.13072847]
[1755168003391,1.09234911,121410.0,121400.0,0.13072847]
[1755168003848,1.08927911,121410.0,121400.0,0.13282847]
[1755168004058,1.09234911,121410.0,121400.0,0.13282847]
[1755168004264,0.6316805,121410.0,121400.0,0.13072847]
[1755168004466,1.03456968,121410.0,121400.0,0.13282847]
[1755168006420,0.54612607,121410.0,121400.0,0.13282847]
[1755168006566,1.03149968,121410.0,121400.0,0.13282847]
[1755168008016,0.54612607,121410.0,121400.0,0.13282847]
[1755168008229,1.03149968,121410.0,121400.0,0.13282847]
[1755168008449,1.06285323,121410.0,121400.0,0.00618847]
[1755168008663,1.02936968,121410.0,121400.0,0.13586847]
[1755168008870,0.54399607,121410.0,121400.0,0.00618847]
[1755168009080,1.03471968,121410.0,121400.0,0.00096847]
[1755168009304,1.05970421,121410.0,121400.0,0.00096847]
[1755168009506,1.14218864,121410.0,121400.0,0.13056847]
[1755168009710,1.11720411,121410.0,121400.0,0.13056847]
[1755168010357,1.14218864,121410.0,121400.0,0.13064847]
[1755168010766,1.14218864,121410.0,121400.0,0.00096847]
[1755168011000,1.14218864,121410.0,121400.0,0.13068847]
[1755168012720,0.51730464,121400.0,121390.0,0.0034]
[1755168012922,1.51838639,121400.0,121390.0,0.13308]
[1755168013337,1.51838639,121400.0,121390.0,0.0034]
[1755168013555,1.51838639,121400.0,121380.0,0.04908386]
[1755168013556,0.51731821,121390.0,121380.0,0.04908386]
[1755168013762,1.03302635,121390.0,121380.0,0.17872386]
[1755168013968,1.03352044,121390.0,121380.0,0.17872386]
[1755168014134,1.06654376,121390.0,121380.0,0.17872386]
[1755168014345,1.07451226,121390.0,121380.0,0.17872386]
[1755168014961,1.07451226,121390.0,121380.0,0.17972386]
[1755168016332,1.07451226,121390.0,121380.0,0.05008386]
[1755168016534,0.58913865,121390.0,121380.0,0.17980386]
[1755168016739,1.07451226,121390.0,121380.0,0.17976386]
[1755168016885,1.06654376,121390.0,121380.0,0.17976386]
[1755168017369,1.06654376,121390.0,121380.0,0.17876386]
[1755168017578,1.06754376,121390.0,121380.0,0.17884386]
[1755168017791,1.06854376,121390.0,121380.0,0.04908386]
[1755168018009,1.06854376,121390.0,121380.0,0.17884386]
[1755168018252,0.50477179,121380.0,121370.0,0.25433647]
[1755168018469,1.0080554,121380.0,121370.0,0.25433647]
[1755168018765,1.03892431,121380.0,121370.0,0.25433647]
[1755168018976,1.0080554,121380.0,121370.0,0.25433647]
[1755168019412,1.0080554,121380.0,121370.0,0.38457647]
[1755168019631,1.0080554,121380.0,121370.0,0.38644647]
[1755168020760,1.0080554,121380.0,121370.0,0.38640647]
[1755168021255,1.0327664,121380.0,121370.0,0.25628647]
[1755168021502,1.11525083,121380.0,121370.0,0.25628647]
[1755168021737,1.11525083,121380.0,121370.0,0.38640647]
[1755168022613,1.15305898,121380.0,121370.0,0.38640647]
[1755168022829,1.15305898,121380.0,121370.0,0.25628647]
[1755168023055,1.15305898,121380.0,121370.0,0.38445647]
[1755168023495,0.66768537,121380.0,121370.0,0.38445647]
[1755168023712,1.15305898,121380.0,121370.0,0.38441647]
[1755168025569,1.15305898,121380.0,121370.0,0.25940647]
[1755168025570,1.14982898,121380.0,121370.0,0.25940647]
[1755168025779,1.14982898,121380.0,121370.0,0.38944647]
[1755168026189,1.14982898,121380.0,121370.0,0.38632647]
[1755168026190,1.15305898,121380.0,121370.0,0.38632647]
[1755168026906,1.15305898,121380.0,121370.0,0.38437647]
[1755168028380,1.15305898,121380.0,121370.0,0.25433647]
[1755168028596,1.15305898,121380.0,121370.0,0.38489647]
[1755168028803,1.15405898,121380.0,121370.0,0.38489647]
[1755168029252,1.15505898,121380.0,121370.0,0.38489647]
[1755168030011,1.15505898,121380.0,121370.0,0.38525647]
[1755168033610,1.15505898,121380.0,121370.0,0.38513647]
[1755168033787,1.15505898,121380.0,121370.0,0.25433647]
[1755168033996,1.15505898,121380.0,121370.0,0.38521647]
[1755168035330,0.66968537,121380.0,121370.0,0.38521647]
[1755168035545,1.15505898,121380.0,121370.0,0.38521647]
[1755168035759,1.07257455,121380.0,121370.0,0.38521647]
[1755168037019,0.58720094,121380.0,121370.0,0.38521647]
[1755168037219,1.07257455,121380.0,121370.0,0.38521647]
[1755168037459,1.07257455,121380.0,121370.0,0.25433647]
[1755168037666,1.07257455,121380.0,121370.0,0.38513647]
[1755168037922,0.58720094,121380.0,121370.0,0.38513647]
[1755168038142,1.07257455,121380.0,121370.0,0.38726647]
[1755168038783,1.07257455,121380.0,121370.0,0.38722647]
[1755168038988,1.07257455,121380.0,121370.0,0.25646647]
[1755168039205,1.07257455,121380.0,121370.0,0.38718647]
[1755168040222,1.10120256,121380.0,121370.0,0.38718647]
[1755168040880,0.58397094,121380.0,121370.0,0.25646647]
[1755168041089,1.06722455,121380.0,121370.0,0.39124647]
[1755168041508,1.06722455,121380.0,121370.0,0.25964647]
[1755168041741,1.06928455,121380.0,121370.0,0.25646647]
[1755168041946,1.06928455,121380.0,121370.0,0.38834647]
[1755168042166,1.15176898,121380.0,121370.0,0.38834647]
[1755168042590,1.15483898,121380.0,121370.0,0.38834647]
[1755168043224,0.58185094,121380.0,121370.0,0.25646647]
[1755168043447,1.06722455,121380.0,121370.0,0.39164647]
[1755168043862,0.58185094,121380.0,121370.0,0.39164647]
[1755168044072,1.06722455,121380.0,121370.0,0.25964647]
[1755168044321,1.06722455,121380.0,121370.0,0.39180647]
[1755168044532,1.06722455,121380.0,121370.0,0.39192647]
[1755168045671,1.06722455,121380.0,121370.0,0.25964647]
[1755168045672,1.14970898,121380.0,121370.0,0.25964647]
[1755168045867,1.14970898,121380.0,121370.0,0.39196647]
[1755168046304,1.15176898,121380.0,121370.0,0.39196647]
[1755168046764,1.15483898,121380.0,121370.0,0.25433647]
[1755168046969,1.15483898,121380.0,121370.0,0.38665647]
[1755168047387,0.66946537,121380.0,121370.0,0.25433647]
[1755168047587,1.15483898,121380.0,121370.0,0.25433647]
[1755168047793,1.15483898,121380.0,121370.0,0.38669647]
[1755168048315,1.15483898,121380.0,121370.0,0.18917647]
[1755168048528,1.15483898,121380.0,121370.0,0.18925647]
[1755168050625,0.66946537,121380.0,121370.0,0.18925647]
[1755168050828,1.07235455,121380.0,121370.0,0.18925647]
[1755168051046,1.07235455,121380.0,121370.0,0.05681647]
[1755168051273,1.07235455,121380.0,121370.0,0.18937647]
[1755168051484,0.58698094,121380.0,121370.0,0.18937647]
[1755168051688,1.07235455,121380.0,121370.0,0.18937647]
[1755168052102,1.12417343,121380.0,121370.0,0.18937647]
[1755168052340,1.12417343,121380.0,121370.0,0.05681647]
[1755168052580,1.12417343,121380.0,121370.0,0.18937647]
[1755168053255,1.12417343,121380.0,121370.0,0.05681647]
[1755168053470,1.12417343,121380.0,121370.0,0.13260001]
[1755168053719,0.16478536,121370.0,121360.0,0.0218662]
[1755168053931,0.99015897,121370.0,121360.0,0.0239962]
[1755168054137,1.00857354,121370.0,121360.0,0.0271762]
[1755168054352,0.99015897,121370.0,121360.0,0.0271762]
[1755168054582,1.01487297,121370.0,121360.0,0.0271762]
[1755168054792,1.01487297,121370.0,121360.0,0.1598162]
[1755168055215,0.52949936,121370.0,121360.0,0.0271762]
[1755168055424,1.01487297,121370.0,121360.0,0.1597762]
[1755168055762,1.0994174,121370.0,121360.0,0.1597762]
[1755168056178,1.02743297,121370.0,121360.0,0.1597762]
[1755168056762,1.02743297,121370.0,121360.0,0.0271762]
[1755168056962,1.02743297,121370.0,121360.0,0.1597762]
[1755168057188,0.54205936,121370.0,121360.0,0.1597762]
[1755168057399,1.02743297,121370.0,121360.0,0.0271762]
[1755168057633,1.02743297,121370.0,121360.0,0.1597762]
[1755168058120,1.02949297,121370.0,121360.0,0.0239962]
[1755168058322,1.02949297,121370.0,121360.0,0.1566362]
[1755168058537,1.03256297,121370.0,121360.0,0.1566362]
[1755168060469,1.03256297,121370.0,121360.0,0.0239962]
[1755168060677,1.03256297,121370.0,121360.0,0.1565962]
[1755168060872,1.1150474,121370.0,121360.0,0.1565962]
[1755168061718,1.1150474,121370.0,121360.0,0.1545062]
[1755168062285,1.02743297,121370.0,121360.0,0.1598162]
[1755168062448,1.02949297,121370.0,121360.0,0.1598162]
[1755168062679,1.03256297,121370.0,121360.0,0.1545062]
[1755168063217,1.03256297,121370.0,121360.0,0.0218662]
[1755168063642,1.03256297,121370.0,121360.0,0.1544262]
[1755168063847,1.60042101,121370.0,121360.0,0.0218662]
[1755168064051,1.60042101,121370.0,121360.0,0.1544262]
[1755168064704,1.1150474,121370.0,121360.0,0.1544262]
[1755168067728,0.7750474,121370.0,121360.0,0.1544262]
[1755168068112,0.7750474,121370.0,121360.0,0.0218662]
[1755168068313,0.51735894,121360.0,121350.0,0.0034]
[1755168068572,1.09047698,121360.0,121350.0,0.1358]
[1755168069301,1.11519198,121360.0,121350.0,0.0034]
[1755168069504,1.11519198,121360.0,121350.0,0.13592]
[1755168070460,1.03370755,121360.0,121350.0,0.0034]
[1755168070798,0.20407394,121360.0,121350.0,0.24348242]
[1755168071040,0.20407394,121360.0,121350.0,0.24154227]
[1755168071246,0.54407394,121360.0,121350.0,0.24210227]
[1755168071460,0.68944755,121360.0,121350.0,0.24210227]
[1755168071672,0.54407394,121360.0,121350.0,0.10890227]
[1755168071907,0.54407394,121360.0,121350.0,0.24210227]
[1755168072973,0.61495987,121360.0,121350.0,0.24210227]
[1755168075185,0.54407394,121360.0,121350.0,0.10890227]
[1755168075324,0.20407394,121360.0,121350.0,0.11096242]
[1755168075528,0.20407394,121360.0,121350.0,0.24428242]
[1755168075734,0.20407394,121360.0,121350.0,0.24222227]
[1755168076005,0.20407394,121360.0,121350.0,0.10890227]
[1755168076220,0.20407394,121360.0,121350.0,0.24634257]
[1755168076425,0.20407394,121360.0,121350.0,0.24226227]
[1755168076852,0.17935894,121360.0,121350.0,0.24226227]
[1755168079474,0.17935894,121360.0,121350.0,0.10390227]
[1755168080002,0.17935894,121360.0,121350.0,0.23718227]
[1755168080549,0.17935894,121360.0,121350.0,0.10070227]
[1755168080762,0.17935894,121360.0,121350.0,0.10276242]
[1755168081000,0.17935894,121360.0,121350.0,0.23932242]
[1755168081238,0.17935894,121360.0,121350.0,0.23726227]
[1755168081927,0.17935894,121360.0,121350.0,0.23406227]
[1755168082892,0.18461894,121360.0,121350.0,0.23402227]
[1755168083140,0.18461894,121360.0,121350.0,0.10070227]
[1755168083388,0.18149894,121360.0,121350.0,0.23402227]
[1755168083667,0.17935894,121360.0,121350.0,0.23402227]
[1755168084957,0.20406994,121360.0,121350.0,0.23402227]
[1755168088239,0.20406994,121360.0,121350.0,0.23710227]
[1755168088416,0.20406994,121360.0,121350.0,0.23706227]
[1755168090176,0.63181437,121360.0,121350.0,0.10017227]
[1755168090382,0.6529141,121360.0,121350.0,0.08272325]
[1755168090594,0.63181437,121360.0,121350.0,0.21596325]
[1755168090800,1.11718798,121360.0,121350.0,0.21596325]
[1755168091005,0.54932994,121360.0,121350.0,0.13324]
[1755168091198,1.03470355,121360.0,121350.0,0.13324]
[1755168091637,0.50481252,121350.0,121340.0,0.21504902]
[1755168091854,0.99232613,121350.0,121340.0,0.35113902]
[1755168092059,0.50695252,121350.0,121340.0,0.35113902]
[1755168092474,0.16695252,121350.0,121340.0,0.35113902]
[1755168092899,0.1778663,121350.0,121340.0,0.35445902]
[1755168093520,0.1778663,121350.0,121340.0,0.22037902]
[1755168093732,0.1778663,121350.0,121340.0,0.30310227]
[1755168093893,0.1778663,121350.0,121340.0,0.43746227]
[1755168094103,0.1778663,121350.0,121340.0,0.30310227]
[1755168094294,0.1778663,121350.0,121340.0,0.43746227]
[1755168094491,0.1778663,121350.0,121340.0,0.30310227]
[1755168094733,0.1778663,121350.0,121340.0,0.43746227]
[1755168094934,0.1778663,121350.0,121340.0,0.30310227]
[1755168095169,0.1778663,121350.0,121340.0,0.43657066]
[1755168095378,0.1778663,121350.0,121340.0,0.30221066]
[1755168095591,0.1778663,121350.0,121340.0,0.43653066]
[1755168096778,0.1778663,121350.0,121340.0,0.30221066]
[1755168096996,0.1778663,121350.0,121340.0,0.43665066]
[1755168097216,0.1778663,121350.0,121340.0,0.30221066]
[1755168097393,0.1778663,121350.0,121340.0,0.43665066]
[1755168097637,0.1778663,121350.0,121340.0,0.30221066]
[1755168097843,0.1778663,121350.0,121340.0,0.43661066]
[1755168098232,0.1778663,121350.0,121340.0,0.30221066]
[1755168098386,0.1778663,121350.0,121340.0,0.43661066]
[1755168098598,0.00049378,121350.0,121340.0,0.43661066]
[1755168098804,0.00049378,121350.0,121340.0,0.30221066]
[1755168099020,0.00049378,121350.0,121340.0,0.43729066]
[1755168099228,0.00049378,121350.0,121340.0,0.60211676]
[1755168099943,0.00049378,121350.0,121340.0,0.60511676]
[1755168100672,0.00049378,121350.0,121340.0,0.94511676]
[1755168100886,0.00049378,121350.0,121340.0,0.81003676]
[1755168101333,0.00049378,121350.0,121340.0,0.78033066]
[1755168101578,0.00049378,121350.0,121340.0,0.64521066]
[1755168101801,0.00049378,121350.0,121340.0,0.78033066]
[1755168102249,0.1673263,121350.0,121340.0,0.08572325]
[1755168102467,0.70824733,121350.0,121340.0,0.22200325]
[1755168102692,0.24758772,121350.0,121340.0,0.22200325]
[1755168103112,0.24758772,121350.0,121340.0,0.23945227]
[1755168103316,0.2076903,121350.0,121340.0,0.23645227]
[1755168104687,0.2076903,121350.0,121340.0,0.23669227]
[1755168105197,0.01256,121340.0,121320.0,0.0004]
[1755168105390,0.6678833,121330.0,121320.0,0.0004]
[1755168105589,1.0078833,121330.0,121320.0,0.0004]
[1755168105805,0.54515969,121330.0,121320.0,0.0004]
[1755168106013,1.10153308,121330.0,121320.0,0.1372]
[1755168106217,1.10153308,121330.0,121320.0,0.0004]
[1755168106423,1.0305333,121330.0,121320.0,0.0014]
[1755168107065,1.0305333,121330.0,121320.0,0.13768]
[1755168107275,1.0305333,121330.0,121320.0,0.0004]
[1755168107489,1.0325333,121330.0,121320.0,0.13776]
[1755168107939,1.0325333,121330.0,121320.0,0.0004]
[1755168108143,1.0325333,121330.0,121320.0,0.13776]
[1755168108359,0.54715969,121330.0,121320.0,0.13776]
[1755168108560,1.0325333,121330.0,121320.0,0.0004]
[1755168108771,1.11041785,121330.0,121320.0,0.13768]
[1755168108994,1.11041785,121330.0,121320.0,0.0004]
[1755168109208,1.11041785,121330.0,121320.0,0.13764]
[1755168109826,1.11041785,121330.0,121320.0,0.0004]
[1755168110039,1.11836236,121330.0,121320.0,0.13764]
[1755168110288,1.15546413,121330.0,121320.0,0.13764]
[1755168111025,1.07757958,121330.0,121320.0,0.13764]
[1755168111445,1.07757958,121330.0,121320.0,0.1376]
[1755168111650,1.05492958,121330.0,121320.0,0.0004]
[1755168111860,1.05492958,121330.0,121320.0,0.1376]
[1755168112067,1.05492958,121330.0,121320.0,0.0004]
[1755168112276,1.05492958,121330.0,121320.0,0.1376]
[1755168112484,1.05492958,121330.0,121320.0,0.13756]
[1755168112906,1.07965058,121330.0,121320.0,0.13756]
[1755168113607,0.59427697,121330.0,121320.0,0.13756]
[1755168113837,1.07965058,121330.0,121320.0,0.0004]
[1755168114180,0.59427697,121330.0,121320.0,0.1376]
[1755168114400,1.07965058,121330.0,121320.0,0.1376]
[1755168114605,1.07965058,121330.0,121320.0,0.0004]
[1755168114812,1.07965058,121330.0,121320.0,0.13756]
[1755168115226,0.59427697,121330.0,121320.0,0.13951]
[1755168115870,0.59118697,121330.0,121320.0,0.13951]
[1755168116305,0.58122246,121330.0,121320.0,0.13951]
[1755168116512,0.56866246,121330.0,121320.0,0.13951]
[1755168116748,0.58122246,121330.0,121320.0,0.13951]
[1755168116959,0.58122246,121330.0,121320.0,0.13967]
[1755168118022,0.58122246,121330.0,121320.0,0.00235]
[1755168118251,1.13871766,121330.0,121320.0,0.1376]
[1755168119493,1.07170607,121330.0,121320.0,0.1376]
[1755168120561,1.07170607,121330.0,121320.0,0.0004]
[1755168120735,1.07170607,121330.0,121320.0,0.13764]